fUSD/lending_fUSD_20250507
["ID","MTS","AMOUNT","RATE_DAILY","PERIOD"]
[360175066,1746593447861,-720.21,0.00019647,2]
[360175067,1746593447870,-1117.83,0.00019647,2]
[360175068,1746593447879,-450.0,0.00019647,2]
[360175069,1746593447889,-450.0,0.00019647,2]
[360175070,1746593447898,-450.0,0.00019647,2]
[360175071,1746593447908,-450.0,0.00019647,2]
[360175072,1746593447917,-1112.81,0.00019647,2]
[360175073,1746593447926,-450.0,0.00019647,2]
[360175074,1746593447935,-238.86,0.00019647,2]
[360175075,1746593447944,-450.0,0.00019647,2]
[360175076,1746593447954,-450.0,0.00019647,2]
[360175077,1746593447962,-450.0,0.00019647,2]
[360175078,1746593447972,-450.0,0.00019647,2]
[360175079,1746593447981,-450.0,0.00019647,2]
[360175080,1746593447990,-458.53,0.00019647,2]
[360175081,1746593447999,-458.53,0.00019647,2]
[360175082,1746593448008,-1481.84,0.00019647,2]
[360175083,1746593448017,-450.0,0.00019647,2]
[360175084,1746593448026,-450.0,0.00019647,2]
[360175085,1746593448035,-450.0,0.00019647,2]
[360175086,1746593448045,-450.0,0.00019647,2]
[360175087,1746593448054,-450.0,0.00019647,2]
[360175088,1746593448065,-450.0,0.00019647,2]
[360175089,1746593448075,-450.0,0.00019647,2]
[360175090,1746593448085,-450.0,0.00019647,2]
[360175091,1746593448094,-450.0,0.00019647,2]
[360175092,1746593448104,-450.0,0.00019647,2]
[360175093,1746593448113,-450.0,0.00019647,2]
[360175094,1746593448123,-450.0,0.00019647,2]
[360175095,1746593448132,-24263.39,0.00019647,2]
[360175096,1746593448141,-450.0,0.00019647,2]
[360175097,1746593448150,-450.0,0.00019647,2]
[360175098,1746593448160,-450.0,0.00019647,2]
[360175099,1746593448169,-546.19,0.00019647,2]
[360175100,1746593448179,-450.0,0.00019647,2]
[360175101,1746593448188,-450.0,0.00019647,2]
[360175102,1746593448198,-450.0,0.00019647,2]
[360175103,1746593448207,-450.0,0.00019647,2]
[360175104,1746593448217,-1401.2,0.00019647,2]
[360175105,1746593448226,-493.51,0.00019647,2]
[360175106,1746593448236,-450.0,0.00019647,2]
[360175107,1746593448246,-450.0,0.00019647,2]
[360175108,1746593448255,-792.83,0.00019647,2]
[360175109,1746593448264,-1187.61,0.00019647,2]
[360175110,1746593448273,-997.2,0.00019647,2]
[360175111,1746593448283,-450.0,0.00019647,2]
[360175112,1746593448293,-1678.17,0.00019647,2]
[360175113,1746593448302,-450.0,0.00019647,2]
[360175114,1746593448312,-497.05,0.00019647,2]
[360175115,1746593448322,-450.0,0.00019647,2]
[360175116,1746593448331,-151.0,0.00019647,2]
[360175117,1746593448341,-450.0,0.00019647,2]
[360175118,1746593448350,-450.0,0.00019647,2]
[360175119,1746593448360,-1149.11,0.00019647,2]
[360175120,1746593448369,-450.0,0.00019647,2]
[360175121,1746593448379,-464.53,0.00019647,2]
[360175122,1746593448388,-450.0,0.00019647,2]
[360175123,1746593448399,-151.0,0.00019648,2]
[360175124,1746593448409,-151.0,0.00019648,2]
[360175125,1746593448419,-151.0,0.00019648,2]
[360175126,1746593448430,-152.120223,0.00019648,2]
[360175127,1746593448439,-151.0,0.00019648,2]
[360175128,1746593448449,-151.0,0.00019648,2]
[360175129,1746593448460,-151.0,0.00019648,2]
[360175130,1746593448471,-151.0,0.00019648,2]
[360175131,1746593448480,-268.652629,0.00019648,2]
[360175132,1746593448489,-254.743874,0.00019648,2]
[360175133,1746593448499,-254.743874,0.00019648,2]
[360175134,1746593448509,-151.0,0.00019648,2]
[360175135,1746593448519,-156.376908,0.00019648,2]
[360175136,1746593448528,-151.0,0.00019648,2]
[360175137,1746593448537,-151.0,0.00019648,2]
[360175138,1746593448547,-1398.273243,0.00019648,2]
[360175139,1746593448558,-1398.273243,0.00019648,2]
[360175140,1746593448569,-151.0,0.00019648,2]
[360175141,1746593448579,-151.0,0.00019648,2]
[360175142,1746593448589,-1610.3822269,0.00019648,2]
[360175143,1746593448599,-151.0,0.00019648,2]
[360175144,1746593448608,-151.0,0.00019648,2]
[360175145,1746593448618,-151.358908,0.00019648,2]
[360175146,1746593448628,-151.0,0.00019648,2]
[360175147,1746593448638,-277.682923,0.00019648,2]
[360175148,1746593448647,-151.0,0.00019648,2]
[360175149,1746593448656,-151.0,0.00019648,2]
[360175150,1746593448666,-50758.3541055,0.00019648,2]
[360175151,1746593448676,-151.0,0.00019648,2]
[360175152,1746593448686,-160.97987,0.00019648,2]
[360175153,1746593448696,-151.0,0.00019648,2]
[360175154,1746593448706,-186.640472,0.00019648,2]
[360175155,1746593448720,-186.640472,0.00019648,2]
[360175156,1746593448730,-151.0,0.00019648,2]
[360175157,1746593448739,-4395.4605395,0.00019648,2]
[360175158,1746593448751,-151.0,0.00019648,2]
[360175159,1746593448761,-151.0,0.00019648,2]
[360175160,1746593448771,-151.0,0.00019648,2]
[360175161,1746593448781,-185.65709,0.00019648,2]
[360175162,1746593448791,-151.0,0.00019648,2]
[360175163,1746593448801,-151.0,0.00019648,2]
[360175164,1746593448810,-185.65709,0.00019648,2]
[360175165,1746593448820,-164.933933,0.00019648,2]
[360175166,1746593448830,-151.0,0.00019648,2]
[360175167,1746593448839,-151.0,0.00019648,2]
[360175168,1746593448848,-151.0,0.00019648,2]
[360175169,1746593448858,-526.1036687,0.00019648,2]
[360175170,1746593448867,-287.76209,0.00019648,2]
[360175171,1746593448877,-287.76209,0.00019648,2]
[360175172,1746593448887,-151.0,0.00019648,2]
[360175173,1746593448896,-151.0,0.00019648,2]
[360175174,1746593448905,-151.936966,0.00019648,2]
[360175175,1746593448914,-284.847818,0.00019648,2]
[360175176,1746593448924,-284.847818,0.00019648,2]
[360175177,1746593448933,-163.99255,0.00019648,2]
[360175178,1746593448943,-174.237596,0.00019648,2]
[360175179,1746593448953,-16549.3907795,0.00019648,2]
[360175180,1746593448962,-151.0,0.00019648,2]
[360175181,1746593448972,-174.237596,0.00019648,2]
[360175182,1746593448982,-151.0,0.00019648,2]
[360175183,1746593448992,-151.0,0.00019648,2]
[360175184,1746593449002,-169.174084,0.00019648,2]
[360175185,1746593449011,-151.0,0.00019648,2]
[360175186,1746593449021,-169.174084,0.00019648,2]
[360175187,1746593449031,-80178.9215551,0.00019648,2]
[360175188,1746593449040,-151.0,0.00019648,2]
[360175189,1746593449051,-450.0,0.0001965,2]
[360175190,1746593449061,-453.80387379,0.0001965,2]
[360175191,1746593449071,-546.19,0.0001965,2]
[360175192,1746593449081,-208.30184347,0.0001965,2]
[360175193,1746593449394,-71.20174334,0.0001965,2]
[360175194,1746593449576,-450.0,0.00019631,2]
[360175195,1746593449586,-222.0,0.00019641,2]
[360175196,1746593449607,-228.0,0.00019641,2]
[360175197,1746593449616,-257.47094162,0.00019643,2]
[360175198,1746593449627,-192.52905838,0.00019643,2]
[360175199,1746593449637,-450.0,0.00019646,2]
[360175200,1746593449647,-470.0,0.00019647,2]
[360175201,1746593449656,-450.0,0.00019649,2]
[360175202,1746593449666,-170.49641319,0.0001965,2]
[360175203,1746593449675,-15.93199742,0.0001965,2]
[360175204,1746593449899,-274.10293658,0.00019613,2]
[360175205,1746593449908,-450.0,0.00019631,2]
[360175206,1746593449918,-500.0,0.00019641,2]
[360175207,1746593449928,-450.0,0.00019642,2]
[360175208,1746593449937,-500.0,0.00019646,2]
[360175209,1746593449946,-134.15997464,0.00019646,2]
[360175210,1746593450171,-315.84002536,0.00019646,2]
[360175211,1746593450181,-500.0,0.00019646,2]
[360175212,1746593450190,-373.37006278,0.00019646,2]
[360175213,1746593450200,-366.70779919,0.0001965,2]
[360175214,1746593450211,-67.36020339,0.0001965,2]
[360175215,1746593450220,-205.00299369,0.0001965,2]
[360175216,1746593450231,-244.99700631,0.0001965,2]
[360175217,1746593450240,-250.0,0.0001965,2]
[360175218,1746593450250,-450.0,0.0001965,2]
[360175219,1746593450259,-49.60111225,0.0001965,2]
[360175220,1746593450279,-1681.40888775,0.0001965,2]
[360175221,1746593450288,-450.0,0.0001965,2]
[360175222,1746593450297,-1060.82,0.0001965,2]
[360175223,1746593450306,-450.0,0.0001965,2]
[360175224,1746593450315,-871.12,0.0001965,2]
[360175225,1746593450325,-202.33876259,0.0001965,2]
[360175226,1746593450335,-450.0,0.0001965,2]
[360175227,1746593450344,-450.0,0.0001965,2]
[360175228,1746593450354,-450.0,0.0001965,2]
[360175229,1746593450363,-538.91,0.0001965,2]
[360175230,1746593450372,-278.59411966,0.0001965,2]
[360175231,1746593470945,500.0,0.0003,30]
[360175232,1746593554618,202.09,0.00018653,2]
[360175233,1746593660407,500.0,0.0003,30]
[360175234,1746593791086,250.0,0.00017,2]
[360175235,1746593792176,300.0,0.00019,2]
[360175236,1746593843954,1000.0,0.00018645,2]
[360175238,1746593953858,2754.63821145,0.0003,120]
[360175239,1746593964925,500.0,0.0003,30]
[360175240,1746594012322,2016.0,0.000195,2]
[360175241,1746594055625,152.0,0.00029813,30]
[360175242,1746594059119,1649.0,0.000194,2]
[360175245,1746594185434,150.0,0.0003,30]
[360175246,1746594199823,531.45327821,0.0003,30]
[360175247,1746594313197,500.0,0.0003,30]
[360175248,1746594324816,281.55,0.00018633,2]
[360175251,1746594370232,202.26535107,0.00019659,30]
[360175252,1746594403496,175.49392959,0.00013699,2]
[360175253,1746594409321,500.0,0.00029589,30]
[360175254,1746594409584,400.0,0.00029863,30]
[360175255,1746594419195,491.73,0.00016701,2]
[360175256,1746594419403,491.73,0.00018965,2]
[360175257,1746594424009,500.0,0.0003,30]
[360175258,1746594434528,618.288842,0.0003,120]
[360175259,1746594482560,159.86,0.00019178,2]
[360175261,1746594610016,1906.0,0.0003,30]
[360175264,1746594632429,-207.4,0.00019518,2]
[360175265,1746594632438,-250.0,0.00019524,2]
[360175266,1746594632448,-250.0,0.00019528,2]
[360175267,1746594632458,-760.4000005,0.00019529,2]
[360175268,1746594632485,-439.5999995,0.00019529,2]
[360175269,1746594632494,-300.0,0.00019529,2]
[360175270,1746594632505,-167.55735893,0.00019529,2]
[360175271,1746594632514,-188.0560562,0.0001953,2]
[360175272,1746594632524,-78591.90696685,0.0001953,2]
[360175273,1746594632534,-4012.21103141,0.00019531,2]
[360175274,1746594632543,-13410.31841318,0.00019531,2]
[360175280,1746594638607,-2355.93323927,0.00019531,2]
[360175281,1746594638618,-263.87137854,0.00019531,2]
[360175286,1746594640550,-7777.98316901,0.00019531,2]
[360175287,1746594640559,-8900.4755,0.00019532,2]
[360175288,1746594640570,-440.11472694,0.00019532,2]
[360175289,1746594640579,-203.11656857,0.00019542,2]
[360175290,1746594640588,-172.03036736,0.00019551,2]
[360175291,1746594640598,-4888.52,0.00019551,2]
[360175292,1746594640608,-158.08935038,0.00019559,2]
[360175293,1746594640617,-282.66717064,0.00019559,2]
[360175294,1746594640626,-4012.21103137,0.00019572,2]
[360175295,1746594640636,-2925.00446273,0.00019582,2]
[360175296,1746594640645,-1649.0,0.000196,2]
[360175297,1746594640655,-4012.21103137,0.00019613,2]
[360175298,1746594640665,-2925.00446273,0.00019621,2]
[360175299,1746594640674,-151.0,0.00019629,2]
[360175300,1746594640683,-151.0,0.00019629,2]
[360175301,1746594640692,-151.0,0.00019629,2]
[360175302,1746594640702,-668.65185757,0.00019629,2]
[360175303,1746594640712,-478.13868149,0.00019631,2]
[360175304,1746594640722,-450.0,0.00019631,2]
[360175305,1746594640731,-450.0,0.00019631,2]
[360175306,1746594640741,-450.0,0.00019631,2]
[360175307,1746594640751,-470.0,0.00019631,2]
[360175308,1746594640760,-450.0,0.00019631,2]
[360175309,1746594640770,-450.0,0.00019631,2]
[360175310,1746594640779,-450.0,0.00019631,2]
[360175311,1746594640788,-450.0,0.00019631,2]
[360175312,1746594640797,-2000.0,0.00019631,2]
[360175313,1746594640806,-450.0,0.00019631,2]
[360175314,1746594640815,-450.0,0.00019631,2]
[360175315,1746594640825,-450.0,0.00019631,2]
[360175316,1746594640834,-450.0,0.00019631,2]
[360175317,1746594640843,-450.0,0.00019631,2]
[360175318,1746594640853,-450.0,0.00019631,2]
[360175319,1746594640862,-450.0,0.00019631,2]
[360175320,1746594640871,-450.0,0.00019631,2]
[360175321,1746594640880,-450.0,0.00019631,2]
[360175322,1746594640890,-450.0,0.00019631,2]
[360175323,1746594640899,-450.0,0.00019631,2]
[360175324,1746594640909,-450.0,0.00019631,2]
[360175325,1746594640919,-450.0,0.00019631,2]
[360175326,1746594640928,-450.0,0.00019631,2]
[360175327,1746594640938,-490.0,0.00019631,2]
[360175328,1746594640947,-450.0,0.00019631,2]
[360175329,1746594640957,-450.0,0.00019631,2]
[360175330,1746594640965,-470.0,0.00019631,2]
[360175331,1746594640975,-450.0,0.00019631,2]
[360175332,1746594640984,-470.0,0.00019631,2]
[360175333,1746594640993,-720.51,0.00019631,2]
[360175334,1746594641002,-450.0,0.00019631,2]
[360175335,1746594641011,-450.0,0.00019631,2]
[360175336,1746594641020,-450.0,0.00019631,2]
[360175337,1746594641030,-450.0,0.00019631,2]
[360175338,1746594641039,-738.6,0.00019631,2]
[360175339,1746594641048,-450.0,0.00019631,2]
[360175340,1746594641057,-450.0,0.00019631,2]
[360175341,1746594641066,-783.07,0.00019631,2]
[360175342,1746594641075,-450.0,0.00019631,2]
[360175343,1746594641084,-450.0,0.00019631,2]
[360175344,1746594641093,-450.0,0.00019631,2]
[360175345,1746594641102,-450.0,0.00019631,2]
[360175346,1746594641111,-450.0,0.00019631,2]
[360175347,1746594641121,-450.0,0.00019631,2]
[360175348,1746594641130,-475.41718845,0.00019631,2]
[360175349,1746594641139,-450.0,0.00019631,2]
[360175350,1746594641149,-456.33,0.00019631,2]
[360175351,1746594641159,-450.0,0.00019631,2]
[360175352,1746594641169,-450.0,0.00019631,2]
[360175353,1746594641178,-450.0,0.00019631,2]
[360175354,1746594641187,-450.0,0.00019631,2]
[360175355,1746594641196,-450.0,0.00019631,2]
[360175356,1746594641207,-802.52,0.00019631,2]
[360175357,1746594641217,-450.0,0.00019631,2]
[360175358,1746594641227,-450.0,0.00019631,2]
[360175359,1746594641236,-450.0,0.00019631,2]
[360175360,1746594641246,-541.44,0.00019631,2]
[360175361,1746594641256,-450.0,0.00019631,2]
[360175362,1746594641266,-450.0,0.00019631,2]
[360175363,1746594641276,-450.0,0.00019631,2]
[360175364,1746594641286,-450.0,0.00019631,2]
[360175365,1746594641295,-591.31,0.00019631,2]
[360175366,1746594641304,-450.0,0.00019631,2]
[360175367,1746594641314,-450.0,0.00019631,2]
[360175368,1746594641323,-450.0,0.00019631,2]
[360175369,1746594641332,-450.0,0.00019631,2]
[360175370,1746594641341,-450.0,0.00019631,2]
[360175371,1746594641350,-471.07,0.00019631,2]
[360175372,1746594641359,-470.0,0.00019631,2]
[360175373,1746594641368,-341.91651894,0.00019631,2]
[360175374,1746594641377,-472.36905144,0.00019631,2]
[360175375,1746594641387,-450.0,0.00019631,2]
[360175376,1746594641396,-470.0,0.00019631,2]
[360175377,1746594641405,-450.0,0.00019631,2]
[360175378,1746594641414,-450.0,0.00019631,2]
[360175379,1746594641423,-215.84,0.00019631,2]
[360175380,1746594641432,-450.0,0.00019633,2]
[360175381,1746594641441,-1723.74,0.00019633,2]
[360175382,1746594641451,-450.0,0.00019633,2]
[360175383,1746594641459,-450.0,0.00019633,2]
[360175384,1746594641469,-903.52,0.00019633,2]
[360175385,1746594641478,-450.0,0.00019633,2]
[360175386,1746594641487,-450.0,0.00019633,2]
[360175387,1746594641496,-450.0,0.00019633,2]
[360175388,1746594641506,-450.0,0.00019633,2]
[360175389,1746594641515,-1071.76,0.00019633,2]
[360175390,1746594641525,-450.0,0.00019633,2]
[360175391,1746594641534,-450.0,0.00019633,2]
[360175392,1746594641543,-493.42,0.00019633,2]
[360175393,1746594641552,-450.0,0.00019633,2]
[360175394,1746594641562,-450.0,0.00019633,2]
[360175395,1746594641571,-450.0,0.00019633,2]
[360175396,1746594641581,-1907.05,0.00019633,2]
[360175397,1746594641590,-450.0,0.00019633,2]
[360175398,1746594641601,-450.0,0.00019633,2]
[360175399,1746594641611,-1219.34,0.00019633,2]
[360175400,1746594641621,-868.28,0.00019633,2]
[360175401,1746594641631,-450.0,0.0001964,2]
[360175402,1746594641641,-516.46,0.0001964,2]
[360175403,1746594641652,-450.0,0.0001964,2]
[360175404,1746594641662,-450.0,0.0001964,2]
[360175405,1746594641672,-450.0,0.0001964,2]
[360175406,1746594641681,-450.0,0.0001964,2]
[360175407,1746594641690,-450.0,0.0001964,2]
[360175408,1746594641700,-450.0,0.0001964,2]
[360175409,1746594641709,-450.0,0.0001964,2]
[360175410,1746594641719,-450.0,0.0001964,2]
[360175411,1746594641728,-450.0,0.0001964,2]
[360175412,1746594641738,-450.0,0.0001964,2]
[360175413,1746594641747,-450.0,0.0001964,2]
[360175414,1746594641756,-472.95,0.0001964,2]
[360175415,1746594641766,-450.0,0.0001964,2]
[360175416,1746594641775,-450.0,0.0001964,2]
[360175417,1746594641785,-186.28222241,0.0001964,2]
[360175418,1746594641794,-547.43514998,0.0001964,2]
[360175419,1746594641803,-961.16,0.0001964,2]
[360175420,1746594641813,-450.0,0.0001964,2]
[360175421,1746594641823,-948.44,0.0001964,2]
[360175422,1746594641832,-450.0,0.0001964,2]
[360175423,1746594641842,-914.17,0.0001964,2]
[360175424,1746594641852,-454.65,0.0001964,2]
[360175425,1746594641861,-18399.4202453,0.0001964,2]
[360175426,1746594641870,-450.0,0.0001964,2]
[360175427,1746594641880,-156.78321947,0.0001964,2]
[360175428,1746594641890,-453.14,0.0001964,2]
[360175429,1746594641899,-560.04,0.0001964,2]
[360175430,1746594641909,-450.0,0.0001964,2]
[360175431,1746594641918,-450.0,0.0001964,2]
[360175432,1746594641928,-162.96537,0.0001964,2]
[360175433,1746594641937,-450.0,0.0001964,2]
[360175434,1746594641946,-2926.617037,0.0001964,2]
[360175435,1746594641955,-1227.05,0.0001964,2]
[360175436,1746594641965,-580.0,0.0001964,2]
[360175437,1746594641974,-450.0,0.0001964,2]
[360175438,1746594641983,-450.0,0.0001964,2]
[360175439,1746594641992,-631.220305,0.0001964,2]
[360175440,1746594642001,-450.0,0.0001964,2]
[360175441,1746594642010,-345.695893,0.0001964,2]
[360175442,1746594642019,-361.73787043,0.0001964,2]
[360175443,1746594642029,-450.0,0.0001964,2]
[360175444,1746594642038,-275.93993691,0.0001964,2]
[360175445,1746594642047,-450.0,0.0001964,2]
[360175446,1746594642056,-450.0,0.0001964,2]
[360175447,1746594642066,-450.0,0.0001964,2]
[360175448,1746594642075,-1061.93,0.0001964,2]
[360175449,1746594642086,-450.0,0.0001964,2]
[360175450,1746594642098,-180.64510225,0.00019641,2]
[360175451,1746594642107,-571.40892565,0.00019641,2]
[360175452,1746594642117,-450.0,0.00019641,2]
[360175453,1746594642127,-450.0,0.00019641,2]
[360175454,1746594642137,-450.0,0.00019641,2]
[360175455,1746594642148,-450.0,0.00019641,2]
[360175456,1746594642158,-450.0,0.00019641,2]
[360175457,1746594642167,-450.0,0.00019641,2]
[360175458,1746594642176,-450.0,0.00019641,2]
[360175459,1746594642186,-450.0,0.00019641,2]
[360175460,1746594642195,-450.0,0.00019641,2]
[360175461,1746594642205,-450.0,0.00019641,2]
[360175462,1746594642214,-450.0,0.00019641,2]
[360175463,1746594642223,-479.31271413,0.00019641,2]
[360175464,1746594642422,-517.05087529,0.00019641,2]
[360175465,1746594642431,-450.0,0.00019641,2]
[360175466,1746594642440,-450.0,0.00019641,2]
[360175467,1746594642450,-450.0,0.00019641,2]
[360175468,1746594642458,-450.0,0.00019641,2]
[360175469,1746594642467,-500.0,0.00019641,2]
[360175470,1746594642476,-450.0,0.00019641,2]
[360175471,1746594642486,-450.0,0.00019641,2]
[360175472,1746594642496,-450.0,0.00019641,2]
[360175473,1746594642505,-450.0,0.00019641,2]
[360175474,1746594642516,-500.0,0.00019641,2]
[360175475,1746594642525,-450.0,0.00019641,2]
[360175476,1746594642535,-450.0,0.00019641,2]
[360175477,1746594642544,-450.0,0.00019641,2]
[360175478,1746594642553,-450.0,0.00019641,2]
[360175479,1746594642562,-450.0,0.00019641,2]
[360175480,1746594642572,-450.0,0.00019641,2]
[360175481,1746594642582,-450.0,0.00019641,2]
[360175482,1746594642591,-450.0,0.00019641,2]
[360175483,1746594642600,-549.390611,0.00019641,2]
[360175484,1746594642609,-450.0,0.00019641,2]
[360175485,1746594642619,-576.16845544,0.00019641,2]
[360175486,1746594642629,-450.0,0.00019641,2]
[360175487,1746594642639,-462.17263254,0.00019641,2]
[360175488,1746594642648,-490.0,0.00019641,2]
[360175489,1746594642657,-450.0,0.00019641,2]
[360175490,1746594642666,-450.0,0.00019641,2]
[360175491,1746594642676,-848.45,0.00019641,2]
[360175492,1746594642685,-450.0,0.00019641,2]
[360175493,1746594642694,-450.0,0.00019641,2]
[360175494,1746594642704,-450.0,0.00019641,2]
[360175495,1746594642713,-450.0,0.00019641,2]
[360175496,1746594642722,-495.96595279,0.00019641,2]
[360175497,1746594642731,-450.0,0.00019641,2]
[360175498,1746594642741,-450.0,0.00019641,2]
[360175499,1746594642750,-462.95685112,0.00019641,2]
[360175500,1746594642759,-490.4396838,0.00019641,2]
[360175501,1746594642768,-450.0,0.00019641,2]
[360175502,1746594642778,-450.0,0.00019641,2]
[360175503,1746594642787,-450.0,0.00019641,2]
[360175504,1746594642796,-470.0,0.00019641,2]
[360175505,1746594642805,-400.0,0.00019641,2]
[360175506,1746594642815,-450.0,0.00019641,2]
[360175507,1746594642824,-182.06266934,0.00019641,2]
[360175508,1746594642833,-470.0,0.00019641,2]
[360175509,1746594642844,-462.57199392,0.00019641,2]
[360175510,1746594642854,-470.0,0.00019641,2]
[360175511,1746594642863,-470.0,0.00019641,2]
[360175512,1746594642873,-470.0,0.00019641,2]
[360175513,1746594642883,-187.06647206,0.00019641,2]
[360175514,1746594642893,-450.0,0.00019641,2]
[360175515,1746594642902,-470.0,0.00019641,2]
[360175516,1746594642911,-470.0,0.00019641,2]
[360175517,1746594642921,-587.19,0.00019641,2]
[360175518,1746594642931,-450.0,0.00019641,2]
[360175519,1746594642940,-450.0,0.00019641,2]
[360175520,1746594642949,-470.0,0.00019641,2]
[360175521,1746594642958,-484.09372656,0.00019641,2]
[360175522,1746594642968,-365.05165633,0.00019641,2]
[360175523,1746594642977,-470.0,0.00019641,2]
[360175524,1746594642987,-162.55411999,0.00019641,2]
[360175525,1746594642997,-470.0,0.00019641,2]
[360175526,1746594643006,-470.0,0.00019641,2]
[360175527,1746594643016,-470.0,0.00019641,2]
[360175528,1746594643026,-597.97273239,0.00019641,2]
[360175529,1746594643037,-470.0,0.00019641,2]
[360175530,1746594643047,-450.0,0.00019641,2]
[360175531,1746594643057,-470.0,0.00019641,2]
[360175532,1746594643067,-472.03657244,0.00019641,2]
[360175533,1746594643077,-470.0,0.00019641,2]
[360175534,1746594643086,-450.0,0.00019641,2]
[360175535,1746594643096,-477.85103968,0.00019641,2]
[360175536,1746594643105,-450.0,0.00019641,2]
[360175537,1746594643115,-470.0,0.00019641,2]
[360175538,1746594643124,-478.19333598,0.00019641,2]
[360175539,1746594643136,-470.0,0.00019641,2]
[360175540,1746594643146,-473.94895209,0.00019641,2]
[360175541,1746594643156,-477.02561307,0.00019641,2]
[360175542,1746594643165,-450.0,0.00019641,2]
[360175543,1746594643174,-450.0,0.00019641,2]
[360175544,1746594643183,-476.48752221,0.00019641,2]
[360175545,1746594643194,-475.79962889,0.00019641,2]
[360175546,1746594643204,-470.0,0.00019641,2]
[360175547,1746594643213,-450.0,0.00019641,2]
[360175549,1746594643223,-470.0,0.00019641,2]
[360175550,1746594643233,-475.75587976,0.00019641,2]
[360175552,1746594643242,-450.0,0.00019641,2]
[360175553,1746594643255,-450.0,0.00019641,2]
[360175556,1746594643264,-480.80763731,0.00019641,2]
[360175557,1746594643274,-450.0,0.00019641,2]
[360175559,1746594643283,-419.80341459,0.00019641,2]
[360175560,1746594643292,-450.0,0.00019641,2]
[360175561,1746594643301,-470.0,0.00019641,2]
[360175562,1746594643311,-483.72119793,0.00019641,2]
[360175563,1746594643321,-450.0,0.00019641,2]
[360175564,1746594643330,-479.25129948,0.00019641,2]
[360175565,1746594643340,-450.0,0.00019641,2]
[360175566,1746594643350,-473.07297635,0.00019641,2]
[360175567,1746594643359,-478.83469016,0.00019641,2]
[360175568,1746594643368,-784.77,0.00019641,2]
[360175569,1746594643377,-450.0,0.00019641,2]
[360175570,1746594643387,-450.0,0.00019641,2]
[360175572,1746594643396,-470.0,0.00019641,2]
[360175574,1746594643406,-450.0,0.00019641,2]
[360175575,1746594643415,-230.82149543,0.00019641,2]
[360175576,1746594643425,-450.0,0.00019641,2]
[360175577,1746594643434,-477.97055295,0.00019641,2]
[360175578,1746594643444,-477.82222382,0.00019641,2]
[360175579,1746594643454,-450.0,0.00019641,2]
[360175580,1746594643463,-450.0,0.00019641,2]
[360175581,1746594643472,-450.0,0.00019641,2]
[360175582,1746594643482,-470.0,0.00019641,2]
[360175583,1746594643491,-450.0,0.00019641,2]
[360175584,1746594643501,-450.0,0.00019641,2]
[360175585,1746594643510,-470.0,0.00019641,2]
[360175586,1746594643519,-539.11235781,0.00019641,2]
[360175587,1746594643529,-450.0,0.00019641,2]
[360175588,1746594643538,-250.0,0.00019641,2]
[360175589,1746594643548,-450.0,0.00019641,2]